bitfinex/quotes_ETHUSD_20240731
["timestamp","ask_amount","ask_price","bid_price","bid_amount"]
[1722418158502,1.111,3325.0,3324.7,3.00771]
[1722418158670,1.111,3325.0,3324.8,3.00764]
[1722418159286,1.111,3325.0,3324.9,3.0076]
[1722418159488,7.4813889,3325.4,3324.9,3.0076]
[1722418159489,1.111,3325.2,3324.9,3.0076]
[1722418160519,1.111,3325.2,3325.0,3.00745]
[1722418162408,7.4813889,3325.4,3325.1,3.00742]
[1722418162603,1.1123889,3325.4,3325.1,3.00742]
[1722418163285,1.111,3325.2,3324.9,0.549284]
[1722418163477,1.111,3325.2,3324.8,3.06779785]
[1722418163685,1.111,3325.2,3325.0,3.00747]
[1722418166565,1.111,3325.2,3324.9,3.00758]
[1722418169208,1.111,3325.2,3325.0,3.00743]
[1722418169503,1.111,3325.2,3325.0,6.01488]
[1722418169707,1.111,3325.2,3325.1,3.00742]
[1722418188528,1.1123889,3325.4,3325.2,3.00731]
[1722418188749,1.1123889,3325.4,3325.3,3.00724]
[1722418189250,1.1123889,3325.4,3325.3,6.01448]
[1722418191629,1.1123889,3325.4,3325.3,3.00724]
[1722418198575,1.1123889,3325.4,3325.3,6.01448]
[1722418201876,1.1123889,3325.4,3325.3,3.00724]
[1722418203772,1.1123889,3325.4,3325.3,6.01448]
[1722418203956,0.0013889,3325.4,3325.3,6.01448]
[1722418204481,0.0013889,3325.4,3325.3,6.851988]
[1722418208633,0.0013889,3325.4,3325.3,9.859228]
[1722418208829,0.0013889,3325.4,3325.3,12.245928]
[1722418209030,0.0013889,3325.4,3325.3,15.253168]
[1722418209792,0.0013889,3325.4,3325.3,19.253168]
[1722418210788,0.0013889,3325.4,3325.3,22.253168]
[1722418211856,0.0013889,3325.4,3325.3,19.245928]
[1722418212196,0.0013889,3325.4,3325.3,20.356928]
[1722418212400,0.0013889,3325.4,3325.3,19.245928]
[1722418214098,0.0013889,3325.4,3325.3,16.238688]
[1722418214307,0.0013889,3325.4,3325.3,19.245928]
[1722418215046,0.0013889,3325.4,3325.3,16.238688]
[1722418216495,0.0013889,3325.4,3325.3,19.245928]
[1722418216847,0.0013889,3325.4,3325.3,20.356928]
[1722418217206,0.0013889,3325.4,3325.3,23.364168]
[1722418218554,0.0013889,3325.4,3325.3,20.356928]
[1722418221766,0.0013889,3325.4,3325.3,23.364168]
[1722418222317,0.0013889,3325.4,3325.3,20.356928]
[1722418222808,0.0013889,3325.4,3325.3,23.364168]
[1722418223225,0.0013889,3325.4,3325.3,20.356928]
[1722418224915,0.0013889,3325.4,3325.3,16.356928]
[1722418225329,0.0013889,3325.4,3325.3,20.356928]
[1722418226802,0.0013889,3325.4,3325.3,13.851988]
[1722418227597,0.0013889,3325.4,3325.3,9.851988]
[1722418227949,0.0013889,3325.4,3325.3,13.851988]
[1722418234413,0.0013889,3325.4,3325.3,7.844748]
[1722418234734,0.0013889,3325.4,3325.3,7.00724]
[1722418235545,0.0013889,3325.4,3325.3,4.0]
[1722418236109,0.0013889,3325.4,3325.0,3.0075]
[1722418236544,1.111,3325.2,3324.8,3.00764]
[1722418237035,1.111,3325.2,3324.6,4.0]
[1722418237248,1.111,3325.2,3324.7,3.00771]
[1722418237631,1.111,3325.0,3324.8,4.0]
[1722418237832,2.4299,3324.9,3324.8,4.0]
[1722418238412,6.092333,3324.9,3324.8,4.0]
[1722418238598,6.5485,3324.9,3324.8,4.0]
[1722418238812,6.5485,3324.9,3324.1,4.0]
[1722418238813,3.00795,3324.6,3324.1,4.0]
[1722418239000,2.4091,3324.7,3323.6,3.00873]
[1722418239001,1.111,3324.1,3323.6,3.00873]
[1722418239215,1.111,3324.1,3323.4,6.01785]
[1722418239504,1.111,3324.1,3323.4,3.0089]
[1722418239701,7.48,3324.4,3323.6,7.00878]
[1722418239945,1.111,3324.1,3323.8,3.0086]
[1722418240154,7.48,3324.4,3323.9,0.30086]
[1722418240155,8.591,3324.4,3323.9,0.30086]
[1722418240460,8.591,3324.4,3324.0,3.00834]
[1722418241419,7.48,3324.4,3324.0,3.00834]
[1722418241620,8.591,3324.4,3324.0,3.00834]
[1722418242204,8.591,3324.4,3323.5,1.111]
[1722418242205,7.48,3324.4,3324.1,3.00825]
[1722418242534,1.111,3324.6,3324.2,0.300825]
[1722418242700,1.111,3324.6,3323.9,3.00847]
[1722418242903,1.111,3324.6,3324.1,3.00825]
[1722418245162,2.4091,3324.7,3324.1,3.00825]
[1722418247067,2.4091,3324.7,3323.9,3.00847]
[1722418247068,2.4091,3324.7,3323.9,6.0169]
[1722418247228,0.24091,3324.6,3324.0,3.00841]
[1722418249286,0.24091,3324.6,3324.0,6.01671]
[1722418249455,2.4091,3324.7,3324.0,3.00835]
[1722418250179,2.4091,3324.7,3324.0,6.0167]
[1722418250335,2.4091,3324.7,3324.0,3.00835]
[1722418252617,2.4091,3324.7,3324.2,3.00818]
[1722418253379,2.4091,3324.7,3324.0,3.00834]
[1722418253847,2.4091,3324.7,3323.9,3.0085]
[1722418254068,2.4091,3324.7,3323.8,3.0086]
[1722418254292,0.24091,3324.6,3323.9,3.00846]
[1722418254590,0.24091,3324.6,3323.7,3.0086]
[1722418254591,3.24881,3324.6,3323.7,3.0086]
[1722418255159,0.24091,3324.6,3323.8,6.01714]
[1722418255365,0.24091,3324.6,3323.8,3.00855]
[1722418255757,0.24091,3324.6,3323.9,3.00846]
[1722418258595,0.24091,3324.6,3323.9,3.00843]
[1722418258796,2.4091,3324.7,3324.1,3.00827]
[1722418259176,2.4091,3324.7,3324.2,3.00819]
[1722418259375,2.4091,3324.7,3324.3,3.00809]
[1722418260320,2.4091,3324.7,3324.1,3.00827]
[1722418260618,2.4091,3324.7,3324.2,3.00818]
[1722418261187,2.4091,3324.7,3324.3,3.00813]
[1722418261642,7.48,3325.0,3324.8,3.00767]
[1722418261797,3.00697,3325.7,3324.4,0.06015451]
[1722418261798,2.3795889,3325.4,3324.7,3.00778]
[1722418262117,2.3795889,3325.4,3324.8,3.00769]
[1722418262338,3.36554779,3325.4,3324.8,3.00769]
[1722418263435,3.36554779,3325.4,3324.5,3.06805981]
[1722418263585,3.36554779,3325.4,3324.7,3.00778]
[1722418265400,3.00743,3325.1,3324.3,3.00808]
[1722418265611,2.3499,3325.0,3324.2,3.00821]
[1722418266038,5.35742,3325.0,3324.2,3.00821]
[1722418266206,6.159562,3325.0,3324.2,3.00821]
[1722418266687,3.152042,3325.0,3324.1,3.0083]
[1722418266893,3.00761,3324.9,3324.1,3.0083]
[1722418267126,3.152042,3325.0,3324.1,3.0083]
[1722418267337,3.152042,3325.0,3324.2,3.00823]
[1722418267752,3.8899612,3324.9,3323.9,3.00842]
[1722418267955,2.4011,3324.8,3324.0,3.00837]
[1722418268781,5.40885,3324.8,3324.0,3.00837]
[1722418269351,3.0078,3324.7,3323.9,7.00846]
[1722418269886,3.0078,3324.7,3323.9,3.00846]
[1722418270944,3.41118632,3324.8,3323.9,3.00843]
[1722418271252,3.41118632,3324.8,3324.4,3.00805]
[1722418271253,2.4011,3324.8,3324.4,3.00805]
[1722418271503,2.3311889,3325.4,3324.5,0.06015484]
[1722418271690,2.3311889,3325.4,3324.7,3.00774]
[1722418272833,2.86501379,3325.4,3324.7,3.00774]
[1722418273329,2.86501379,3325.4,3324.7,6.01546]
[1722418273495,2.86501379,3325.4,3324.7,3.06787075]
[1722418273826,2.86501379,3325.4,3324.9,3.0076]
[1722418274000,2.70538801,3325.4,3324.9,3.0076]
[1722418274196,2.17156312,3325.4,3324.9,3.0076]
[1722418276032,2.17156312,3325.4,3324.7,3.00772]
[1722418276597,2.17156312,3325.4,3324.5,3.0079]
[1722418276794,3.00724,3325.3,3324.5,3.0079]
[1722418277202,3.00736,3325.2,3324.3,3.00809]
[1722418277584,3.00744,3325.1,3324.3,3.00809]
[1722418279852,3.00744,3325.1,3324.2,3.00823]
[1722418280353,3.608912,3325.1,3324.2,3.00823]
[1722418281210,3.608912,3325.1,3324.3,3.00813]
[1722418282935,0.601472,3325.1,3324.3,6.01621]
[1722418283141,3.00728,3325.3,3324.5,3.00796]
[1722418283422,4.83556312,3325.4,3324.6,3.00784]
[1722418283728,3.0,3325.3,3324.7,0.300784]
[1722418283927,3.0,3325.3,3324.8,3.00769]
[1722418284131,7.48,3325.6,3325.0,3.0075]
[1722418284439,2.3782,3325.8,3325.0,3.6150289]
[1722418284440,3.0,3325.5,3325.0,3.6150289]
[1722418284641,2.3782,3325.8,3325.0,3.0075]
[1722418284642,5.3782,3325.8,3325.0,3.0075]
[1722418285012,5.3782,3325.8,3324.5,2.3021]
[1722418285013,2.3782,3325.8,3325.1,0.06014557]
[1722418285349,7.48,3326.3,3324.6,0.06014158]
[1722418285661,7.48,3326.3,3325.9,3.00663]
[1722418285863,2.3638,3326.6,3325.9,3.00663]
[1722418286418,12.44,3326.7,3326.0,3.00659]
[1722418287319,12.44,3326.7,3326.1,3.0065]
[1722418288466,7.48,3326.8,3326.1,3.0065]
[1722418288672,7.48,3326.8,3326.1,3.31310281]
[1722418288825,7.48,3326.8,3326.2,3.00641]
[1722418289740,7.48,3326.8,3325.9,3.00666]
[1722418289940,3.00599,3326.7,3325.7,3.0068]
[1722418290186,9.070452,3326.8,3325.9,3.00669]
[1722418290341,7.48,3326.8,3325.9,3.00669]
[1722418290539,7.48,3326.8,3326.1,3.00651]
[1722418291463,7.48,3326.8,3326.1,6.01296]
[1722418291776,7.48,3326.8,3326.1,3.00645]
[1722418291982,7.48,3326.8,3326.1,3.607761]
[1722418293242,7.48,3326.8,3326.1,0.601311]
[1722418293982,7.48,3326.8,3326.1,3.607801]
[1722418294688,7.48,3326.8,3326.1,3.607761]
[1722418294872,7.48,3326.8,3326.3,3.00632]
[1722418295446,7.48,3326.8,3326.4,3.00623]
[1722418295646,7.48,3326.8,3326.3,3.06639]
[1722418295849,7.48,3326.8,3326.5,3.0061]
[1722418296085,7.48,3326.8,3326.6,3.30666]
[1722418296286,7.48,3327.3,3326.4,3.0062]
[1722418296615,13.48548,3327.3,3326.4,3.0062]
[1722418297259,10.48,3327.3,3326.3,2.4191199]
[1722418297465,15.52923,3327.7,3326.7,3.00592]
[1722418297659,3.00536,3327.4,3326.4,3.24811199]
[1722418298063,3.00536,3327.4,3326.5,3.00608]
[1722418298273,3.00536,3327.4,3326.5,3.5667792]
[1722418298599,3.00556,3327.2,3326.4,3.24810199]
[1722418298745,3.00556,3327.2,3326.4,3.00619]
[1722418298950,3.00536,3327.4,3326.5,3.00615]
[1722418299472,6.00522,3327.6,3326.5,0.06011835]
[1722418299794,6.00522,3327.6,3326.8,3.00588]
[1722418300781,9.01046,3327.6,3326.7,3.06608335]
[1722418301102,8.158676,3327.6,3326.7,3.06608335]
[1722418301388,3.00527,3327.5,3326.7,3.06608335]
[1722418301644,3.0,3327.4,3326.7,3.06608335]
[1722418301796,6.00535,3327.4,3326.7,0.06011335]
[1722418302104,6.00535,3327.4,3326.6,3.00606]
[1722418302303,6.00535,3327.4,3326.6,0.601226]
[1722418302648,6.00535,3327.4,3326.6,3.607256]
[1722418303586,3.0,3327.4,3326.6,6.67334936]
[1722418304176,3.0,3327.4,3326.6,6.613236]
[1722418304500,3.0,3327.4,3326.7,0.6613236]
[1722418305011,3.0,3327.4,3326.6,6.01201]
[1722418305533,3.0,3327.4,3326.6,3.006]
[1722418305824,3.0,3327.4,3326.8,3.00586]
[1722418306036,3.0,3327.5,3326.8,3.00586]
[1722418306214,3.0,3327.6,3326.8,3.61305734]
[1722418306745,6.00518,3327.6,3326.8,3.61305734]
[1722418309719,3.0053,3327.5,3326.8,0.60719734]
[1722418309922,3.0,3327.4,3326.7,3.06608336]
[1722418313322,3.0,3327.4,3326.7,3.06603336]
[1722418314621,6.00535,3327.4,3326.7,0.06011336]
[1722418314820,3.0,3327.4,3326.7,3.06608336]
[1722418315267,3.0,3327.5,3326.7,3.06608336]
[1722418315438,6.00532,3327.5,3326.7,3.06608336]
[1722418316357,6.00532,3327.5,3326.7,3.9115417]
[1722418316739,3.0,3327.5,3326.8,3.00587]
[1722418317101,6.00518,3327.6,3326.8,3.00587]
[1722418317222,6.00518,3327.6,3326.9,3.00579]
[1722418317223,3.0,3327.6,3326.9,3.00579]
[1722418317429,3.0,3327.6,3326.8,0.38513283]
[1722418317655,3.0,3327.6,3327.0,3.0057]
[1722418318138,3.0,3327.6,3326.8,3.45104389]
[1722418318342,3.0,3327.6,3326.9,0.34510439]
[1722418318663,10.144,3327.7,3326.9,3.35088439]
[1722418320252,13.14912,3327.7,3326.9,3.35088439]
[1722418320684,3.00517,3327.6,3326.9,0.34510439]
[1722418320904,2.4113,3327.6,3326.9,0.34510439]
[1722418321055,5.41653,3327.6,3326.9,0.34510439]
[1722418321257,3.0053,3327.5,3326.9,0.34510439]
[1722418321458,3.0053,3327.5,3326.7,3.00591]
[1722418321810,5.41646,3327.6,3326.8,3.06599111]
[1722418322104,3.00535,3327.4,3326.6,3.60494162]
[1722418322310,3.00535,3327.4,3326.7,3.90531516]
[1722418322462,3.00535,3327.4,3326.8,0.06011125]
[1722418322664,3.00535,3327.4,3326.7,3.96542638]
[1722418322858,3.0053,3327.5,3326.7,0.95945638]
[1722418323055,3.0053,3327.5,3326.7,3.06608122]
[1722418323305,3.0053,3327.5,3326.7,0.06011122]
[1722418323470,3.00535,3327.4,3326.7,0.06011122]
[1722418323681,2.664,3327.3,3326.3,2.3741]
[1722418324012,2.664,3326.9,3326.2,3.00643]
[1722418324171,2.664,3326.9,3326.1,3.00652]
[1722418324502,2.664,3326.9,3326.2,0.534742]
[1722418325717,2.664,3326.9,3326.3,3.00629]
[1722418326200,2.664,3326.9,3326.2,0.534742]
[1722418326379,2.664,3326.9,3326.2,3.541162]
[1722418326899,7.48,3327.2,3326.5,3.00611]
[1722418327101,7.48,3327.2,3326.6,0.537561]
[1722418327476,10.48553,3327.2,3326.4,5.37573]
[1722418327804,3.00567,3327.1,3326.2,3.541102]
[1722418328013,3.00567,3327.1,3326.3,0.8917072]
[1722418328590,10.48553,3327.2,3326.4,5.29114]
[1722418328791,10.48553,3327.2,3326.4,2.2849]
[1722418328987,3.00568,3327.1,3326.4,2.2849]
[1722418330726,7.48,3327.2,3326.4,5.29114]
[1722418331013,10.48553,3327.2,3326.5,0.91891772]
[1722418331523,7.48,3327.2,3326.6,0.06011912]
[1722418331716,7.48,3327.2,3326.6,3.06612912]
[1722418331891,7.48,3327.2,3326.6,6.07213912]
[1722418332089,7.48,3327.2,3326.7,3.61318391]
[1722418332293,7.48,3327.2,3326.7,3.67329671]
[1722418333074,7.48,3327.2,3326.7,0.60721391]
[1722418333274,7.48,3327.2,3326.5,3.00608]
[1722418333275,7.48,3327.2,3326.5,6.01218]
[1722418334275,7.48,3327.2,3326.5,3.00608]
[1722418334538,7.48,3327.2,3326.5,6.01218]
[1722418334887,7.48,3327.2,3326.6,3.00606]
[1722418335080,3.00537,3327.4,3326.6,3.00606]
[1722418335286,12.68771641,3327.7,3327.0,3.00569]
[1722418335603,10.48,3327.7,3327.0,3.00569]
[1722418335782,13.48508,3327.7,3327.0,3.00569]
[1722418336611,10.48,3327.7,3327.0,3.00569]
[1722418336797,10.48,3327.7,3327.1,0.60235988]
[1722418336994,7.48,3327.7,3327.2,3.00552]
[1722418337996,7.48,3327.7,3327.1,3.60796988]
[1722418338710,7.48,3327.7,3327.1,0.60235988]
[1722418338921,7.48,3327.7,3327.1,0.06010989]
[1722418340943,3.00498,3327.8,3327.1,0.06010989]
[1722418341456,3.00491,3327.9,3327.1,3.06572989]
[1722418342346,19.92,3328.0,3327.2,3.00548]
[1722418342551,6.0049,3327.9,3327.2,3.61262099]
[1722418342716,6.0049,3327.9,3327.2,0.60714099]
[1722418343077,3.005,3327.8,3327.2,0.60714099]
[1722418343247,3.005,3327.8,3327.1,0.06010989]
[1722418345806,3.0,3327.9,3327.1,3.06570989]
[1722418346010,6.0049,3327.9,3327.1,3.06570989]
[1722418346211,6.0049,3327.9,3327.2,0.60713399]
[1722418347164,7.48,3328.0,3327.3,2.53340592]
[1722418347477,7.48,3328.0,3327.4,3.00532]
[1722418347648,7.48,3328.0,3327.3,2.53340592]
[1722418348532,7.48,3328.0,3327.3,5.53882592]
[1722418349547,7.48,3328.0,3327.4,3.00534]
[1722418349754,7.48,3328.0,3327.4,3.55921459]
[1722418351176,5.20744604,3328.4,3327.5,0.06010181]
[1722418351338,5.20744604,3328.4,3327.7,3.00506]
[1722418351339,3.0,3328.4,3327.7,3.00506]
[1722418351739,3.0,3328.4,3327.6,5.34528]
[1722418352181,6.00444,3328.4,3327.6,5.34528]
[1722418352484,10.48436,3328.5,3327.6,6.18641968]
[1722418352644,3.0046,3328.3,3327.6,3.18126968]
[1722418352848,3.0046,3328.3,3327.6,2.3402]
[1722418353155,7.48,3328.5,3327.6,2.3402]
[1722418353156,2.95463,3328.2,3327.6,2.3402]
[1722418353372,5.42313,3328.2,3327.3,2.3627]
[1722418353576,3.00472,3328.1,3327.4,0.536821]
[1722418353738,3.00472,3328.1,3327.3,5.36813]
[1722418354588,2.4685,3328.2,3327.3,5.36813]
[1722418354789,3.0049,3327.9,3327.3,2.3627]
[1722418354960,3.0049,3327.9,3327.4,0.23627]
[1722418355368,3.00476,3328.1,3327.4,0.23627]
[1722418355552,3.00482,3328.0,3327.4,0.23627]
[1722418355973,3.00495,3327.9,3327.4,0.23627]
[1722418356294,5.66928,3327.5,3326.9,2.4567]
[1722418356497,5.66928,3327.5,3327.0,4.0]
[1722418356802,7.48,3328.0,3326.3,5.46303]
[1722418356803,5.66964,3327.1,3326.3,5.46303]
[1722418356990,5.66964,3327.1,3326.3,6.009333]
[1722418357379,5.66964,3327.1,3326.4,4.0]
[1722418358174,3.00574,3327.0,3326.4,4.0]
[1722418359157,3.0058,3326.9,3326.4,4.0]
[1722418359759,3.0058,3326.9,3326.3,0.546303]
[1722418359966,3.0058,3326.9,3326.0,2.4435]
[1722418360160,3.0058,3326.9,3326.1,4.0]
[1722418360376,3.00599,3326.7,3326.1,4.0]
[1722418360887,5.66999,3326.7,3326.1,4.0]
[1722418361393,3.00617,3326.5,3325.7,5.40841]
[1722418361697,3.00617,3326.5,3325.8,4.540841]
[1722418362276,3.00617,3326.5,3325.8,0.540841]
[1722418364422,3.00639,3326.3,3325.4,2.4004]
[1722418364719,3.00649,3326.2,3325.5,4.0]
[1722418365483,3.00619,3326.5,3325.6,3.00692]
[1722418365827,3.00619,3326.5,3325.6,3.64694]
[1722418366118,3.0063,3326.4,3325.6,3.70708231]
[1722418366318,7.48,3326.6,3325.7,0.77070823]
[1722418366502,3.00623,3326.5,3325.7,0.77070823]
[1722418367288,3.00626,3326.4,3325.7,0.77070823]
[1722418368186,10.48616,3326.6,3325.8,0.50790933]
[1722418368385,10.48616,3326.6,3325.8,3.51469933]
[1722418368585,7.48,3326.6,3326.0,2.4126]
[1722418369910,10.48614,3326.6,3326.0,2.4126]
[1722418370298,10.48614,3326.6,3325.8,0.50790591]
[1722418370493,7.48,3326.6,3325.9,0.35147259]
[1722418371901,10.48613,3326.6,3325.9,0.35147259]
[1722418372093,10.48613,3326.6,3325.8,0.50790591]
[1722418372294,10.48613,3326.6,3325.8,0.44777705]
[1722418372837,3.00617,3326.5,3325.7,3.00686]
[1722418373024,3.00617,3326.5,3325.8,0.0601278]
[1722418374225,3.00617,3326.5,3325.7,6.01367]
[1722418374410,3.00617,3326.5,3325.7,6.01364]
[1722418374613,3.00617,3326.5,3325.7,3.00681]
[1722418374818,7.48,3326.6,3325.8,3.533961]
[1722418375025,7.48,3326.6,3326.0,3.00661]
[1722418376629,2.664,3326.7,3326.0,3.00661]
[1722418378252,5.67003,3326.7,3325.9,3.06681886]
[1722418379179,5.67003,3326.7,3326.0,3.00659]
[1722418380290,2.664,3326.7,3326.2,2.365]
[1722418381083,2.664,3326.7,3326.1,3.00647]
[1722418382244,5.66999,3326.7,3326.0,0.66006199]
[1722418382544,2.664,3326.7,3325.9,5.40814]
[1722418382744,2.664,3326.7,3325.9,2.4015]
[1722418382975,7.48,3326.9,3326.2,3.00642]
[1722418383286,1.109,3326.5,3326.2,3.00642]
[1722418383487,7.48,3326.9,3326.4,5.41668]
[1722418383797,1.109,3326.8,3326.4,2.4105]
[1722418383949,1.109,3326.8,3326.4,3.00625]
[1722418384148,1.109,3326.6,3326.4,3.00625]
[1722418384456,1.109,3326.8,3326.4,3.607514]
[1722418384679,1.109,3326.8,3326.4,3.00625]
[1722418384985,7.48,3326.9,3326.7,2.2529]
[1722418385390,7.48,3326.9,3325.4,10.16709]
[1722418385391,7.48,3326.9,3326.4,3.00619]
[1722418385590,2.2939,3327.2,3326.5,0.06011566]
[1722418385748,2.2939,3327.2,3326.5,0.39157075]
[1722418386150,5.29948,3327.2,3326.5,0.33145509]
[1722418386454,2.2939,3327.2,3326.6,0.06011521]
[1722418387088,9.8805,3327.5,3326.6,3.70655524]
[1722418387292,3.00537,3327.4,3326.5,0.33145509]
[1722418387493,3.00537,3327.4,3326.7,2.3547]
[1722418387653,7.48,3327.5,3326.7,5.36066]
[1722418387853,7.48,3327.5,3326.8,3.00588]
[1722418388229,5.0605,3327.7,3326.7,5.42073251]
[1722418388230,5.0605,3327.7,3326.7,2.3547]
[1722418388376,5.0605,3327.7,3327.0,3.00563]
[1722418388894,5.0605,3327.7,3326.8,3.00582]
[1722418389067,3.00523,3327.6,3326.8,3.00582]
[1722418389263,5.0605,3327.7,3326.7,2.3547]
[1722418389580,8.06564,3327.7,3326.9,3.00578]
[1722418389895,3.00518,3327.6,3326.7,5.59607]
[1722418390053,3.00545,3327.3,3326.5,3.00609]
[1722418390250,10.48,3327.8,3326.2,3.00643]
[1722418390251,2.66,3326.9,3326.2,3.00643]
[1722418391477,2.66,3326.9,3326.2,6.01279]
[1722418391656,2.66,3326.9,3326.4,3.0062]
[1722418392299,12.97315,3327.2,3326.4,3.0062]
[1722418392598,12.97315,3327.2,3326.1,3.0065]
[1722418393493,3.00575,3327.0,3326.2,3.00638]
[1722418393647,3.00575,3327.0,3326.2,0.840738]
[1722418393854,3.00587,3326.9,3326.0,5.40104]
[1722418394157,3.00589,3326.8,3326.0,5.40104]
[1722418394464,3.00589,3326.8,3326.0,2.3945]
[1722418394817,2.66,3326.9,3326.1,3.00652]
[1722418395102,5.66585,3326.9,3326.1,3.00646]
[1722418396296,5.66585,3326.9,3326.2,3.00642]
[1722418397437,2.66,3326.9,3326.0,2.3945]
[1722418397626,7.48,3327.2,3326.4,2.2764]
[1722418397827,7.48,3327.2,3326.5,0.06011658]
[1722418398362,7.48,3327.2,3326.6,3.00606]
[1722418399456,7.48,3327.2,3326.6,6.012]
[1722418399679,7.48,3327.2,3326.5,0.06011658]
[1722418399971,7.48,3327.2,3326.5,3.54036166]
[1722418400963,7.48,3327.2,3326.6,3.00602]
[1722418401168,7.48,3327.2,3326.7,3.00595]
[1722418401324,2.66,3327.3,3326.7,3.00595]
[1722418401864,2.2546,3327.5,3326.8,3.00587]
[1722418402080,5.2546,3327.5,3326.8,3.00587]
[1722418403072,2.2546,3327.5,3326.9,3.00575]
[1722418403307,7.48,3327.6,3326.9,5.41625]
[1722418404676,10.48519,3327.6,3326.9,2.4105]
[1722418404875,10.48519,3327.6,3326.9,5.41628]
[1722418405733,10.48519,3327.6,3327.2,3.0055]
[1722418405734,7.48,3327.6,3327.2,3.0055]
[1722418406078,7.48,3327.6,3327.3,6.01078]
[1722418406261,7.48,3327.6,3327.5,3.00525]
[1722418406571,7.48,3328.2,3327.6,3.00511]
[1722418406783,7.48,3328.2,3327.4,5.69225]
[1722418406980,3.00472,3328.1,3327.4,2.68697]
[1722418407212,4.9364,3327.9,3327.0,2.4236]
[1722418407409,3.00499,3327.8,3327.0,5.4293]
[1722418407565,3.00499,3327.8,3327.0,6.272815]
[1722418407906,3.00499,3327.8,3327.0,6.272765]
[1722418408521,3.005,3327.8,3327.0,2.4236]
[1722418408661,5.66526,3327.5,3326.7,2.4189]
[1722418408866,5.66526,3327.5,3326.8,0.542491]
[1722418409806,5.66526,3327.5,3326.7,5.42487]
[1722418409807,2.2722,3327.4,3326.7,5.42487]
[1722418410186,2.2722,3327.4,3326.7,5.42482]
[1722418410383,2.2722,3327.4,3326.8,3.00588]
[1722418410765,2.66,3327.5,3326.9,6.01153]
[1722418410966,2.66,3327.5,3326.9,3.00574]
[1722418411206,2.66,3327.5,3327.0,3.0057]
[1722418411373,2.4733,3327.7,3327.1,3.00561]
[1722418411775,2.4733,3327.7,3326.9,3.00574]
[1722418411977,7.48,3327.8,3327.0,2.3448]
[1722418412331,10.48451,3328.4,3327.7,3.00507]
[1722418412625,7.48,3328.4,3327.7,3.00502]
[1722418413284,7.48,3328.4,3327.8,3.00498]
[1722418413483,10.48445,3328.4,3327.6,5.49561]
[1722418413670,12.26794239,3328.4,3327.6,5.49561]
[1722418413866,3.0,3328.3,3327.6,5.49561]
[1722418414071,3.0,3328.3,3327.7,3.00507]
[1722418414315,3.0,3328.3,3327.6,2.4905]
[1722418414467,3.0,3328.3,3327.6,5.49564]
[1722418415472,5.09324924,3328.3,3327.6,2.4905]
[1722418415811,2.66,3328.0,3327.3,3.00541]
[1722418415998,5.0,3328.0,3327.2,2.2664]
[1722418416319,5.0,3328.0,3327.0,3.00566]
[1722418416625,5.0,3328.0,3327.0,3.00564]
[1722418416626,3.00495,3327.9,3327.0,3.00564]
[1722418416788,3.00495,3327.9,3327.0,3.537504]
[1722418417314,5.0,3328.0,3327.2,3.0055]
[1722418417518,5.0,3328.0,3327.3,3.00539]
[1722418417726,5.0,3328.0,3327.4,3.00533]
[1722418418661,2.66,3328.0,3327.4,3.00533]
[1722418418858,2.66,3328.0,3327.4,3.00529]
[1722418419154,2.4047,3328.2,3327.7,3.005]
[1722418419861,2.4047,3328.2,3327.6,3.00509]
[1722418420013,7.48,3328.4,3327.9,3.00484]
[1722418420657,8.73447,3328.4,3327.7,3.00501]
[1722418420852,8.73447,3328.4,3327.8,3.00498]
[1722418421068,8.73447,3328.4,3327.9,3.00487]
[1722418421069,7.48,3328.4,3327.9,3.00487]
[1722418421373,7.48,3328.4,3327.8,3.00493]
[1722418421665,7.48,3328.4,3328.1,3.00471]
[1722418422980,7.48,3328.4,3328.2,3.0046]
[1722418423157,7.48,3328.4,3328.2,3.605531]
[1722418423465,7.48,3328.4,3328.2,3.0046]
[1722418423832,7.48,3328.4,3328.2,3.00455]
[1722418424032,7.48,3328.4,3327.6,5.25554]
[1722418424234,4.9834,3328.9,3328.2,3.00455]
[1722418424444,3.0,3328.8,3328.2,3.00455]
[1722418425550,3.0,3328.8,3328.2,6.00911]
[1722418425763,3.0,3328.8,3328.2,3.00455]
[1722418427544,5.3234,3328.9,3328.2,3.00455]
[1722418428170,5.3234,3328.9,3328.1,5.44623]
[1722418428374,5.3234,3328.9,3328.2,3.00462]
[1722418428888,5.3234,3328.9,3328.3,3.00453]
[1722418431161,5.3234,3328.9,3328.4,3.00444]
[1722418431992,5.3234,3328.9,3328.2,3.00455]
[1722418432488,5.3234,3328.9,3328.3,3.00453]
[1722418433153,5.3234,3328.9,3328.4,3.00444]
[1722418433352,0.05236702,3329.2,3328.6,2.3261]
[1722418433606,12.86981,3329.7,3328.9,3.00394]
[1722418433808,12.86981,3329.7,3328.9,3.00391]
[1722418433809,16.816791,3329.7,3328.9,3.00391]
[1722418434032,16.816791,3329.7,3328.7,0.06007631]
[1722418434033,16.816791,3329.7,3329.0,3.0039]
[1722418434233,3.00341,3329.6,3328.6,5.33031]
[1722418434422,13.813481,3329.7,3328.7,0.06007686]
[1722418434423,12.5265,3329.7,3328.7,0.06007686]
[1722418434620,12.5265,3329.7,3329.0,3.00383]
[1722418435563,12.5265,3329.7,3329.1,3.00376]